{"text_format":"1","workbook":"xlsx","n_sheets":1,"sheets":["Scale_Drawing"],"not_rendered":{"charts":0,"images":0,"macros":1,"external_links":0,"defined_names":5,"comments":0,"pivot_tables":0},"unopened":[],"bounds":{"document_bytes":16777216,"sheet_cells":100000,"rows_first":2000,"rows_last":500,"rows_between":2000,"halvings":0,"cell_chars":16384,"cell_head_chars":4096},"cells_cut":0,"cells_raw":0,"read":"whole","date_system":"1900"}

{"sheet":"Scale_Drawing","index":0,"n_rows":42,"n_cols":50,"rows_kept":42,"cut":false,"hidden":false,"merged":[[1,1,4,38],[18,8,18,10],[20,8,20,10],[20,4,20,7],[20,21,20,28],[16,21,19,28],[8,8,8,10],[10,8,10,10],[6,32,6,36],[7,32,7,33],[7,35,7,36],[8,32,8,33],[8,35,8,36],[27,4,27,7],[27,32,27,33],[27,35,27,36],[8,4,8,7],[10,4,10,7],[16,29,19,30],[18,4,18,7],[6,21,9,28],[10,21,10,28],[6,29,9,30],[27,8,27,10],[26,26,26,28],[27,20,27,21],[25,32,25,36],[26,32,26,33],[26,35,26,36],[35,4,35,7],[35,8,35,14],[35,23,35,26],[35,27,35,29],[29,15,29,17]]}
[]
[null,"N4 Lifeskills - Scale Drawing                                                                                                                                                                                                            Created by Mr.Lafferty@mathsrevision.com                                                                                       "]
[]
[]
[]
[]
[null,{"$f":"\"Q1.   For the scale drawing opposite find the real-life length and breadth.\"","v":"Q1.   For the scale drawing opposite find the real-life length and breadth."},null,null,null,null,null,null,null,null,null,null,null,null,null,null,null,null,null,null,null,null,null,null,null,null,null,null,null,{"$f":"AP9","v":"54cm"},null,null,"Scale",null,null,null,null,null,null,null,{"$f":"ROUND(RAND()*(20-(5))+(5),0)*0.5","v":3.5}]
[null,null,null,null,null,null,null,null,null,null,null,null,null,null,null,null,null,null,null,null,null,null,null,null,null,null,null,null,null,null,null,null,"cm",null,null,"m",null,null,null,null,{"$f":"ROUND(RAND()*(100-(20))+(20),0)","v":80},{"$f":"ROUND(AO8*0.67,0)","v":54}]
[null,null,null,null,"Length = ",null,null,null,null,null,null,"m",null,null,null,null,null,null,null,null,null,null,null,null,null,null,null,null,null,null,null,null,1,null,":",{"$f":"AO7","v":3.5},null,null,null,null,{"$f":"CONCATENATE(AO8,\"cm\")","v":"80cm"},{"$f":"CONCATENATE(AP8,\"cm\")","v":"54cm"}]
[null,null,null,null,null,null,null,null,null,null,null,null,null,null,null,null,null,null,null,null,null,null,null,null,null,null,null,null,null,null,null,null,null,null,null,null,null,null,null,null,{"$f":"AO7*AO8","v":280},{"$f":"AO7*AP8","v":189}]
[null,null,null,null,"Breadth = ",null,null,null,null,null,null,"m",null,null,null,null,null,null,null,null,null,{"$f":"AO9","v":"80cm"}]
[]
[]
[]
[null,{"$f":"\"Q2.   The real-life measurements for a rectangle are given opposite. Tom plans to create a scale drawing with a scale of 1cm to \"&AO17&\" m\"","v":"Q2.   The real-life measurements for a rectangle are given opposite. Tom plans to create a scale drawing with a scale of 1cm to 9 m"}]
[null,null,{"$f":"\"  What will be the measurements of the scale drawing ?\"","v":"  What will be the measurements of the scale drawing ?"}]
[null,null,null,null,null,null,null,null,null,null,null,null,null,null,null,null,null,null,null,null,null,null,null,null,null,null,null,null,null,{"$f":"AP21","v":"351m"},null,null,null,null,null,null,null,null,null,null,{"$f":"ROUND(RAND()*(20-(5))+(5),0)*0.5","v":9}]
[null,null,null,null,null,null,null,null,null,null,null,null,null,null,null,null,null,null,null,null,null,null,null,null,null,null,null,null,null,null,null,null,null,null,null,null,null,null,null,null,{"$f":"ROUND(RAND()*(100-(20))+(20),0)","v":58},{"$f":"ROUND(AO18*0.67,0)","v":39}]
[null,null,null,null,"Length = ",null,null,null,null,null,null,"m",null,null,null,null,null,null,null,null,null,null,null,null,null,null,null,null,null,null,null,null,null,null,null,null,null,null,null,null,{"$f":"CONCATENATE(AO18,\"cm\")","v":"58cm"},{"$f":"CONCATENATE(AP18,\"cm\")","v":"39cm"}]
[null,null,null,null,null,null,null,null,null,null,null,null,null,null,null,null,null,null,null,null,null,null,null,null,null,null,null,null,null,null,null,null,null,null,null,null,null,null,null,null,{"$f":"AO17*AO18","v":522},{"$f":"AO17*AP18","v":351}]
[null,null,null,null,"Breadth = ",null,null,null,null,null,null,"m",null,null,null,null,null,null,null,null,null,{"$f":"AO21","v":"522m"},null,null,null,null,null,null,null,null,null,null,null,null,null,null,null,null,null,null,{"$f":"CONCATENATE(AO20,\"m\")","v":"522m"},{"$f":"CONCATENATE(AP20,\"m\")","v":"351m"}]
[]
[]
[]
[null,{"$f":"\"Q3.   Joanna measures the distance on a map between two cities. She measured a distance of \"&AP28&\".\"","v":"Q3.   Joanna measures the distance on a map between two cities. She measured a distance of 22cm."}]
[null,null,"What is the real-life distance between the two cities ?",null,null,null,null,null,null,null,null,null,null,null,null,null,null,null,null,null,null,null,null,null,null,null,null,null,null,null,null,null,"Scale",null,null,null,null,null,null,null,{"$f":"ROUND(RAND()*(10-(1))+(1),0)*5","v":25}]
[null,null,null,null,null,null,null,null,null,null,null,null,null,null,null,null,null,null,null,null,null,null,null,null,null,null,"Riverside",null,null,null,null,null,"cm",null,null,"km",null,null,null,null,null,{"$f":"ROUND(RAND()*(30-(2))+(2),0)","v":22}]
[null,null,null,null,"Distance = ",null,null,null,null,null,null,"km",null,null,null,null,null,null,null,null,{"$f":"AP27","v":22},null,"cm",null,null,null,null,null,null,null,null,null,1,null,":",{"$f":"AO26","v":25},null,null,null,null,null,{"$f":"CONCATENATE(AP27,\"cm\")","v":"22cm"}]
[null,null,null,null,null,null,null,null,null,null,null,null,null,null,null,null,null,null,null,null,null,null,null,null,null,null,null,null,null,null,null,null,null,null,null,null,null,null,null,null,null,{"$f":"AO26*AP27","v":550}]
[null,null,null,null,null,null,null,null,null,null,null,null,null,null,null,"Coney"]
[]
[null,null,null,null,null,null,null,null,null,null,null,null,null,null,null,null,null,null,null,null,null,null,null,null,null,null,null,null,null,null,null,null,null,null,null,null,null,null,null,null,null,null,null,null,null,null,{"$f":"ROUND(RAND()*(8-1)+1,0)","v":3}]
[null,null,null,null,null,null,null,null,null,null,null,null,null,null,null,null,null,null,null,null,null,null,null,null,null,null,null,null,null,null,null,null,null,null,null,null,null,null,null,null,null,{"$f":"ROUND(RAND()*(8-1)+1,0)","v":7},1,"000","North",null,{"$f":"IF(AP33=AU32,ROUND(RAND()*(8-1)+1,0),AU32)","v":3},1,"000","North"]
[null,{"$f":"\"Q4.  (a)   Write down the direction associated with the bearing \"&AR41&AR42&\".\"","v":"Q4.  (a)   Write down the direction associated with the bearing 270°."},null,null,null,null,null,null,null,null,null,null,null,null,null,null,null,null,null,null,{"$f":"\"(b)   Write down the Bearing associated with this direction \"&AX41&\".\"","v":"(b)   Write down the Bearing associated with this direction East."},null,null,null,null,null,null,null,null,null,null,null,null,null,null,null,null,null,null,null,null,null,2,"045","North East",null,null,2,"045","North East"]
[null,null,null,null,null,null,null,null,null,null,null,null,null,null,null,null,null,null,null,null,null,null,null,null,null,null,null,null,null,null,null,null,null,null,null,null,null,null,null,null,null,null,3,"090","East",null,null,3,"090","East"]
[null,null,null,null,"Direction = ",null,null,null,null,null,null,null,null,null,null,null,null,null,null,null,null,null,null,"Bearing = ",null,null,null,null,null,null,{"$f":"AR42","v":"°"},null,null,null,null,null,null,null,null,null,null,null,4,135,"South East",null,null,4,135,"South East"]
[null,null,null,null,null,null,null,null,null,null,null,null,null,null,null,null,null,null,null,null,null,null,null,null,null,null,null,null,null,null,null,null,null,null,null,null,null,null,null,null,null,null,5,180,"South",null,null,5,180,"South"]
[null,null,null,null,null,null,null,null,null,null,null,null,null,null,null,null,null,null,null,null,null,null,null,null,null,null,null,null,null,null,null,null,null,null,null,null,null,null,null,null,null,null,6,225,"South West",null,null,6,225,"South West"]
[null,null,null,null,null,null,null,null,null,null,null,null,null,null,null,null,null,null,null,null,null,null,null,null,null,null,null,null,null,null,null,null,null,null,null,null,null,null,null,null,null,null,7,270,"West",null,null,7,270,"West"]
[null,null,null,null,null,null,null,null,null,null,null,null,null,null,null,null,null,null,null,null,null,null,null,null,null,null,null,null,null,null,null,null,null,null,null,null,null,null,null,null,null,null,8,315,"North West",null,null,8,315,"North West"]
[null,null,null,null,null,null,null,null,null,null,null,null,null,null,null,null,null,null,null,null,null,null,null,null,null,null,null,null,null,null,null,null,null,null,null,null,null,null,null,null,null,null,null,{"$f":"LOOKUP(AP33,AQ33:AQ40,AR33:AR40)","v":270},{"$f":"LOOKUP(AP33,AQ33:AQ40,AS33:AS40)","v":"West"},null,null,null,{"$f":"LOOKUP(AU33,AV33:AV40,AW33:AW40)","v":"090"},{"$f":"LOOKUP(AU33,AV33:AV40,AX33:AX40)","v":"East"}]
[null,null,null,null,null,null,null,null,null,null,null,null,null,null,null,null,null,null,null,null,null,null,null,null,null,null,null,null,null,null,null,null,null,null,null,null,null,null,null,null,null,null,null,"°"]